fUSD/lending_fUSD_20241223
["ID","MTS","AMOUNT","RATE_DAILY","PERIOD"]
[346379508,1734925846657,-1000.0,0.00019534,2]
[346379509,1734925846667,-1000.0,0.00019534,2]
[346379510,1734925846676,-963.00167803,0.00019534,2]
[346379511,1734925846686,-1500.0,0.00019537,2]
[346379512,1734925846696,-150.0,0.00019539,4]
[346379513,1734925846706,-150.0,0.0001954,2]
[346379514,1734925846715,-251.01,0.0001954,2]
[346379515,1734925846725,-500.0,0.00019542,2]
[346379516,1734925846734,-150.0,0.00019559,2]
[346379517,1734925846743,-1000.0,0.0001956,2]
[346379518,1734925846752,-1415.0,0.00019562,2]
[346379519,1734925846762,-150.0,0.00019563,2]
[346379520,1734925846771,-1183.22,0.00019569,2]
[346379521,1734925846781,-1300.26,0.00019569,2]
[346379522,1734925846790,-3791.64,0.00019569,2]
[346379523,1734925846800,-1333.85,0.00019569,2]
[346379524,1734925846809,-164.08468289,0.00019573,2]
[346379525,1734925846819,-500.83205175,0.00019573,2]
[346379526,1734925846828,-161.40832527,0.00019573,2]
[346379527,1734925846838,-502.80790497,0.00019573,2]
[346379528,1734925846847,-505.48268446,0.00019573,2]
[346379529,1734925846856,-500.0,0.00019573,2]
[346379530,1734925846866,-634.71032386,0.00019573,2]
[346379531,1734925846876,-152.88245044,0.00019575,2]
[346379532,1734925846889,-999.96,0.00019589,7]
[346379533,1734925846898,-999.96,0.00019589,7]
[346379534,1734925846907,-999.96,0.00019589,7]
[346379535,1734925846917,-999.96,0.00019589,7]
[346379536,1734925846927,-999.96,0.00019589,7]
[346379537,1734925846937,-999.96,0.00019589,7]
[346379538,1734925846946,-999.96,0.00019589,7]
[346379539,1734925846957,-999.96,0.00019589,7]
[346379540,1734925846967,-999.96,0.00019589,7]
[346379541,1734925846976,-999.96,0.00019589,7]
[346379542,1734925846986,-999.96,0.00019589,7]
[346379543,1734925846995,-999.96,0.00019589,7]
[346379544,1734925847005,-999.96,0.00019589,7]
[346379545,1734925847015,-999.96,0.00019589,7]
[346379546,1734925847024,-999.96,0.00019589,7]
[346379547,1734925847035,-999.96,0.00019589,7]
[346379548,1734925847045,-999.96,0.00019589,7]
[346379549,1734925847054,-999.96,0.00019589,7]
[346379550,1734925847064,-999.96,0.00019589,7]
[346379551,1734925847073,-999.96,0.00019589,7]
[346379552,1734925847083,-999.96,0.00019589,7]
[346379553,1734925847092,-999.96,0.00019589,7]
[346379554,1734925847101,-999.96,0.00019589,7]
[346379555,1734925847111,-1000.08217148,0.00019589,7]
[346379556,1734925847121,-150.0,0.00019589,4]
[346379557,1734925847131,-150.0,0.00019589,4]
[346379558,1734925847140,-150.0,0.00019589,4]
[346379559,1734925847149,-800.0,0.00019589,2]
[346379560,1734925847158,-800.0,0.00019589,2]
[346379561,1734925847168,-500.0,0.00019598,2]
[346379562,1734925847177,-52739.60756904,0.00019599,2]
[346379563,1734925847186,-113335.65809054,0.00019599,2]
[346379564,1734925847195,-735.85,0.00019599,2]
[346379565,1734925847204,-26984.5997021,0.00019599,7]
[346379566,1734925847213,-268.99286703,0.00019599,2]
[346379567,1734925847222,-152.52115859,0.00019599,2]
[346379568,1734925847231,-300.0,0.00019599,2]
[346379569,1734925847241,-378.86774927,0.00019599,2]
[346379570,1734925847250,-300.0,0.00019599,2]
[346379571,1734925847260,-666.0,0.00019599,2]
[346379572,1734925847269,-16188.02673616,0.000196,2]
[346379573,1734925847278,-29716.83646219,0.000196,3]
[346379574,1734925847289,-2255900.37283043,0.000196,3]
[346379575,1734925847299,-10459207.98219809,0.000196,2]
[346379576,1734925847645,-9298.56226896,0.000196,2]
[346379577,1734925847656,-199951.15900338,0.000196,2]
[346379578,1734925847667,-18492.0,0.000196,2]
[346379579,1734925848085,-150.0,0.00018358,2]
[346379580,1734925848095,-150.0,0.00018508,2]
[346379581,1734925848105,-150.0,0.00018633,2]
[346379582,1734925848116,-150.0,0.00018647,2]
[346379583,1734925848127,-150.0,0.00018786,2]
[346379584,1734925848136,-150.0,0.00018787,2]
[346379585,1734925848146,-150.0,0.00018799,2]
[346379586,1734925848156,-150.0,0.00018801,2]
[346379587,1734925848166,-150.0,0.00018821,2]
[346379588,1734925848176,-150.0,0.00018979,2]
[346379589,1734925848382,-150.0,0.00018992,2]
[346379590,1734925848392,-150.0,0.00019078,2]
[346379591,1734925848402,-150.0,0.00019091,2]
[346379592,1734925848412,-150.0,0.00019115,2]
[346379593,1734925848423,-150.0,0.00019257,2]
[346379594,1734925848432,-150.0,0.00019285,2]
[346379595,1734925848442,-150.0,0.00019303,2]
[346379596,1734925848452,-500.0,0.00019364,2]
[346379597,1734925848463,-508.19687103,0.00019396,2]
[346379598,1734925848473,-150.0,0.00019413,2]
[346379599,1734925848483,-232.31501969,0.00019429,2]
[346379600,1734925848493,-232.31501969,0.00019453,2]
[346379601,1734925848502,-150.0,0.00019531,2]
[346379602,1734925848513,-150.0,0.0001956,2]
[346379603,1734925848523,-150.0,0.00019588,2]
[346379604,1734925848534,-10382.83521939,0.000196,2]
[346379605,1734925848546,-1249.10222681,0.000196,2]
[346379606,1734925848586,-1862.85592438,0.000196,2]
[346379607,1734925848598,-6594.82303768,0.000196,2]
[346379608,1734925849120,-3270.96091796,0.000195,2]
[346379609,1734925849130,-778.20058764,0.000196,2]
[346379610,1734925849142,-3851.88067639,0.000196,2]
[346379611,1734925849153,-2599.444995,0.000196,2]
[346379612,1734925849167,-1068.64597801,0.000196,2]
[346379613,1734925849353,-4970.92635577,0.000196,2]
[346379614,1734925849365,-501.05350463,0.000196,2]
[346379615,1734925849377,-300.0,0.000196,2]
[346379616,1734925849389,-8055.6,0.000196,2]
[346379617,1734925849624,-500.0,0.00019396,2]
[346379618,1734925849633,-350890.312619,0.000196,2]
[346379619,1734925849726,-500.0,0.000196,2]
[346379620,1734925849737,-5000.0,0.000196,2]
[346379621,1734926154353,154.8,0.0001875,30]
[346379622,1734926293598,-436.79889694,0.00018,2]
[346379623,1734926450759,675.18,0.00016448,2]
[346379624,1734926469179,5200.0,0.0001959,30]
[346379625,1734926573364,152.89,0.00013699,2]
[346379626,1734926706023,150.0,0.0001763,2]
[346379627,1734926706350,150.0,0.00017719,2]
[346379628,1734926706676,150.0,0.00017808,2]
[346379629,1734926706985,150.0,0.00017897,2]
[346379630,1734926707314,150.0,0.00017986,2]
[346379631,1734926714084,155.92,0.00017995,2]
[346379632,1734926715404,150.0,0.0001763,2]
[346379633,1734926715803,150.0,0.0001791,2]
[346379634,1734926719879,152.59475943,0.0001763,2]
[346379635,1734926721784,151.67121748,0.0001763,2]
[346379636,1734926725678,150.0,0.0001763,2]
[346379637,1734926726013,150.0,0.00017808,2]
[346379638,1734926726367,150.0,0.00017986,2]
[346379639,1734926727827,1056.0,0.00016061,2]
[346379640,1734926734211,150.8166324,0.0001763,2]
[346379641,1734926736358,151.26476083,0.0001763,2]
[346379642,1734926736775,6572.26373292,0.00017883,2]
[346379643,1734926835842,1056.0,0.00012428,2]
[346379644,1734926857046,1056.0,0.00012122,2]
[346379645,1734926878338,1056.0,0.00012122,2]
[346379646,1734926899490,1056.0,0.00012122,2]
[346379647,1734926920664,1056.0,0.00012122,2]
[346379648,1734926941905,1056.0,0.00012122,2]
[346379649,1734926963235,1095.65155387,0.00012122,2]
[346379658,1734927032361,-474.0,0.00013082,2]
[346379659,1734927032372,-430.24377552,0.00013082,2]
[346379660,1734927032521,-151.75622448,0.00013082,2]
[346379661,1734927032530,-171.78777552,0.0001377,2]
[346379714,1734927038378,-884.21222448,0.0001377,2]
[346379715,1734927038388,-1056.0,0.00014495,2]
[346379716,1734927038398,-1056.0,0.00015258,2]
[346379717,1734927038407,-1056.0,0.00016864,2]
[346379718,1734927038417,-500.0,0.00017625,2]
[346379719,1734927038426,-150.96575429,0.0001763,2]
[346379720,1734927038435,-153.40168133,0.0001763,2]
[346379721,1734927038444,-261.06927238,0.0001763,2]
[346379722,1734927038455,-150.0,0.0001763,2]
[346379723,1734927038466,-200.0,0.00017633,2]
[346379724,1734927038476,-1500.0,0.00017657,2]
[346379725,1734927038487,-2000.0,0.00017661,2]
[346379726,1734927038496,-250.0,0.00017679,2]
[346379727,1734927038506,-1056.0,0.00017707,2]
[346379728,1734927038515,-150.0,0.00017741,2]
[346379729,1734927038528,-300.0,0.000178,2]
[346379730,1734927038537,-212.71,0.000178,3]
[346379731,1734927038546,-4283.58873862,0.00017883,2]
[346379732,1734927038600,-13044.14752846,0.00017883,2]
[346379733,1734927038610,-300.0,0.00018,2]
[346379734,1734927038828,-300.0,0.00018,2]
[346379735,1734927038838,-300.0,0.00018,2]
[346379736,1734927038847,-300.0,0.00018,3]
[346379737,1734927038857,-300.0,0.00018,4]
[346379738,1734927038866,-300.0,0.00018,2]
[346379739,1734927038875,-300.0,0.00018,3]
[346379740,1734927038885,-155.92,0.0001801,2]
[346379741,1734927038894,-155.92,0.00018025,2]
[346379742,1734927038903,-155.92,0.0001804,2]
[346379743,1734927038913,-155.92,0.00018055,2]
[346379744,1734927038922,-155.92,0.0001807,2]
[346379745,1734927038931,-150.0,0.00018075,2]
[346379747,1734927038940,-155.92,0.00018085,2]
[346379749,1734927038949,-150.0,0.00018164,2]
[346379751,1734927038958,-150.0,0.00018164,2]
[346379753,1734927038967,-150.0,0.0001819,2]
[346379755,1734927038976,-150.0,0.00018253,2]
[346379757,1734927038986,-250.0,0.00018292,2]
[346379759,1734927038995,-165.45,0.00018323,2]
[346379761,1734927039005,-2751.0,0.00018339,2]
[346379763,1734927039015,-150.0,0.00018342,2]
[346379765,1734927039026,-150.0,0.00018342,2]
[346379767,1734927039035,-1000.0,0.00018345,2]
[346379769,1734927039044,-150.0,0.00018432,2]
[346379771,1734927039054,-200.0,0.00018445,2]
[346379773,1734927039063,-150.0,0.0001847,2]
[346379775,1734927039072,-150.0,0.00018521,2]
[346379777,1734927039082,-150.0,0.00018521,2]
[346379779,1734927039091,-407.42,0.00018531,2]
[346379781,1734927039101,-790.84,0.00018539,2]
[346379783,1734927039111,-1056.0,0.00018593,2]
[346379785,1734927039120,-150.0,0.0001861,2]
[346379787,1734927039130,-238.108,0.0001862,2]
[346379789,1734927039139,-150.0,0.00018699,2]
[346379791,1734927039148,-150.0,0.00018699,2]
[346379793,1734927039157,-675.18,0.00018712,2]
[346379795,1734927039167,-150.0,0.0001875,2]
[346379797,1734927039175,-150.0,0.00018788,2]
[346379799,1734927039185,-150.0,0.00018877,2]
[346379801,1734927039194,-150.0,0.00018877,2]
[346379803,1734927039203,-150.0,0.00018966,2]
[346379805,1734927039212,-152.0,0.00018996,3]
[346379807,1734927039222,-150.0,0.00019029,2]
[346379809,1734927039231,-150.0,0.00019055,2]
[346379811,1734927039240,-150.0,0.00019055,2]
[346379813,1734927039249,-165.9,0.00019057,2]
[346379815,1734927039258,-150.0,0.00019144,2]
[346379818,1734927039274,-436.28,0.00019175,2]
[346379819,1734927039283,-150.0,0.00019175,2]
[346379822,1734927039293,-150.0,0.00019175,2]
[346379823,1734927039303,-434.99,0.00019175,2]
[346379825,1734927039312,-150.0,0.00019175,2]
[346379827,1734927039321,-150.0,0.00019175,2]
[346379830,1734927039331,-2100.66679365,0.000192,2]
[346379831,1734927039342,-150.0,0.00019233,4]
[346379833,1734927039351,-150.0,0.00019233,4]
[346379836,1734927039362,-2100.66679364,0.00019233,2]
[346379838,1734927039370,-159.5317511,0.00019261,2]
[346379839,1734927039380,-166.90239966,0.00019262,2]
[346379841,1734927039389,-422.6,0.00019263,2]
[346379843,1734927039398,-2100.66679364,0.00019267,2]
[346379845,1734927039407,-20000.0,0.000193,5]
[346379847,1734927039416,-20000.0,0.000193,4]
[346379849,1734927039425,-20000.0,0.000193,2]
[346379851,1734927039437,-1669.62,0.000193,2]
[346379853,1734927039447,-152.42,0.000193,2]
[346379855,1734927039456,-157.01,0.000193,2]
[346379857,1734927039465,-734.83,0.000193,2]
[346379860,1734927039475,-154.38,0.000193,2]
[346379862,1734927039486,-442.48,0.000193,2]
[346379864,1734927039496,-2100.66679364,0.000193,2]
[346379866,1734927039505,-150.0,0.00019309,4]
[346379868,1734927039515,-150.0,0.00019322,4]
[346379870,1734927039526,-2100.66679364,0.00019333,2]
[346379872,1734927039535,-384.86828337,0.00019355,2]
[346379874,1734927039544,-901.86,0.00019361,2]
[346379876,1734927039553,-935.35,0.00019361,2]
[346379878,1734927039563,-555.77,0.00019361,2]
[346379880,1734927039572,-1299.25,0.00019361,2]
[346379882,1734927039581,-500.0,0.00019361,2]
[346379883,1734927039590,-1227.17,0.00019361,2]
[346379886,1734927039599,-500.0,0.00019361,2]
[346379888,1734927039608,-2605.93,0.00019361,2]
[346379889,1734927039617,-500.0,0.00019361,2]
[346379892,1734927039627,-6388.39,0.00019361,2]
[346379894,1734927039636,-500.0,0.00019361,2]
[346379896,1734927039646,-845.41,0.00019361,2]
[346379898,1734927039655,-1486.87,0.00019361,2]
[346379900,1734927039665,-2189.13,0.00019361,2]
[346379902,1734927039674,-2456.32,0.00019361,2]
[346379904,1734927039684,-1272.01,0.00019361,2]
[346379906,1734927039695,-1115.74,0.00019361,2]
[346379908,1734927039704,-918.71,0.00019361,2]
[346379910,1734927039715,-1837.56,0.00019361,2]
[346379912,1734927039725,-6458.9,0.00019361,2]
[346379914,1734927039734,-500.0,0.00019361,2]
[346379916,1734927039743,-782.68,0.00019361,2]
[346379918,1734927039753,-500.0,0.00019361,2]
[346379920,1734927039762,-500.0,0.00019361,2]
[346379922,1734927039773,-1259.69,0.00019361,2]
[346379924,1734927039783,-500.02,0.00019361,2]
[346379926,1734927039792,-500.0,0.00019361,2]
[346379928,1734927039803,-677.76,0.00019361,2]
[346379930,1734927039812,-580.9,0.00019361,2]
[346379932,1734927039822,-500.0,0.00019361,2]
[346379934,1734927039831,-1167.07,0.00019361,2]
[346379936,1734927039840,-5483.98,0.00019361,2]
[346379938,1734927039849,-500.0,0.00019362,2]
[346379940,1734927039858,-500.0,0.00019362,2]
[346379942,1734927039867,-500.0,0.00019362,2]
[346379944,1734927039876,-500.0,0.00019362,2]
[346379946,1734927039886,-500.0,0.00019362,2]
[346379948,1734927039895,-500.0,0.00019362,2]
[346379950,1734927039904,-500.0,0.00019362,2]
[346379952,1734927039914,-500.0,0.00019362,2]
[346379954,1734927039923,-500.0,0.00019362,2]
[346379956,1734927039933,-500.0,0.00019362,2]
[346379958,1734927039942,-500.0,0.00019362,2]
[346379960,1734927039951,-500.0,0.00019362,2]
[346379962,1734927039960,-500.0,0.00019362,2]
[346379964,1734927039971,-799.9,0.00019362,2]
[346379966,1734927039980,-500.0,0.00019362,2]
[346379968,1734927039989,-500.0,0.00019362,2]
[346379970,1734927039999,-541.06,0.00019362,2]
[346379972,1734927040008,-500.0,0.00019362,2]
[346379974,1734927040018,-314.62439267,0.00019362,2]
[346379976,1734927040028,-500.0,0.00019362,2]
[346379978,1734927040037,-500.0,0.00019362,2]
[346379980,1734927040046,-500.0,0.00019362,2]
[346379982,1734927040055,-518.11596508,0.00019362,2]
[346379984,1734927040064,-500.0,0.00019362,2]
[346379986,1734927040073,-500.0,0.00019362,2]
[346379988,1734927040082,-500.0,0.00019362,2]
[346379990,1734927040091,-500.0,0.00019362,2]
[346379992,1734927040101,-602.67554877,0.00019362,2]
[346379994,1734927040110,-500.0,0.00019362,2]
[346379997,1734927040119,-500.0,0.00019362,2]
[346380000,1734927040128,-1059.81,0.00019362,2]
[346380003,1734927040137,-500.0,0.00019362,2]
[346380006,1734927040146,-500.0,0.00019362,2]
[346380008,1734927040156,-326.39550571,0.00019362,2]
[346380011,1734927040165,-514.54,0.00019362,2]
[346380013,1734927040174,-500.0,0.00019362,2]
[346380015,1734927040183,-500.0,0.00019362,2]
[346380017,1734927040192,-670.4,0.00019362,2]
[346380019,1734927040201,-821.21,0.00019362,2]
[346380021,1734927040211,-500.0,0.00019362,2]
[346380023,1734927040220,-500.0,0.00019362,2]
[346380025,1734927040229,-500.0,0.00019362,2]
[346380027,1734927040239,-363.5232675,0.00019362,2]
[346380029,1734927040248,-1937.637085,0.00019362,2]
[346380031,1734927040258,-500.0,0.00019362,2]
[346380033,1734927040267,-150.622576,0.00019362,2]
[346380035,1734927040281,-500.0,0.00019362,2]
[346380037,1734927040290,-1573.545185,0.00019362,2]
[346380039,1734927040300,-500.0,0.00019362,2]
[346380041,1734927040310,-500.0,0.00019362,2]
[346380043,1734927040319,-500.0,0.00019362,2]
[346380044,1734927040328,-500.0,0.00019362,2]
[346380046,1734927040337,-531.19774767,0.00019362,2]
[346380048,1734927040348,-500.0,0.00019362,2]
[346380050,1734927040358,-500.0,0.00019362,2]
[346380052,1734927040367,-500.0,0.00019362,2]
[346380054,1734927040376,-500.0,0.00019362,2]
[346380056,1734927040385,-507.35,0.00019362,2]
[346380058,1734927040394,-500.0,0.00019362,2]
[346380060,1734927040403,-504.68,0.00019362,2]
[346380062,1734927040413,-500.0,0.00019362,2]
[346380064,1734927040423,-500.0,0.00019362,2]
[346380066,1734927040432,-500.0,0.00019362,2]
[346380068,1734927040441,-500.0,0.00019362,2]
[346380070,1734927040450,-500.0,0.00019362,2]
[346380072,1734927040459,-500.0,0.00019362,2]
[346380074,1734927040468,-942.28,0.00019362,2]
[346380076,1734927040478,-1107.52,0.00019362,2]
[346380078,1734927040487,-500.0,0.00019362,2]
[346380080,1734927040497,-500.0,0.00019362,2]
[346380082,1734927040505,-500.0,0.00019362,2]
[346380084,1734927040514,-500.0,0.00019362,2]
[346380086,1734927040526,-1024.14,0.00019362,2]
[346380088,1734927040535,-500.0,0.00019362,2]
[346380090,1734927040544,-406.67455889,0.00019362,2]
[346380092,1734927040552,-628.38,0.00019362,2]
[346380094,1734927040561,-500.0,0.00019362,2]
[346380096,1734927040570,-543.99643608,0.00019362,2]
[346380098,1734927040579,-500.0,0.00019362,2]
[346380100,1734927040588,-500.0,0.00019362,2]
[346380102,1734927040597,-500.0,0.00019362,2]
[346380104,1734927040606,-500.0,0.00019362,2]
[346380106,1734927040615,-608.63,0.00019362,2]
[346380108,1734927040624,-993.79,0.00019362,2]
[346380110,1734927040634,-604.70560105,0.00019362,2]
[346380112,1734927040643,-500.0,0.00019362,2]
[346380113,1734927040652,-500.0,0.00019362,2]
[346380114,1734927040661,-500.0,0.00019362,2]
[346380115,1734927040670,-500.0,0.00019362,2]
[346380116,1734927040679,-518.68252005,0.00019362,2]
[346380117,1734927040688,-502.22,0.00019362,2]
[346380118,1734927040696,-500.0,0.00019362,2]
[346380119,1734927040705,-500.0,0.00019362,2]
[346380120,1734927040714,-512.51541631,0.00019362,2]
[346380121,1734927040723,-500.0,0.00019362,2]
[346380122,1734927040732,-500.0,0.00019362,2]
[346380123,1734927040741,-1030.31,0.00019362,2]
[346380124,1734927040750,-500.0,0.00019362,2]
[346380125,1734927040759,-464.46582725,0.00019362,2]
[346380126,1734927040768,-552.06,0.00019362,2]
[346380127,1734927040777,-500.0,0.00019362,2]
[346380128,1734927040787,-500.0,0.00019362,2]
[346380129,1734927040796,-973.19,0.00019362,2]
[346380130,1734927040805,-844.13,0.00019362,2]
[346380131,1734927040813,-500.0,0.00019362,2]
[346380132,1734927040822,-500.0,0.00019362,2]
[346380133,1734927040831,-500.0,0.00019362,2]
[346380134,1734927040840,-602.95,0.00019362,2]
[346380135,1734927040849,-500.0,0.00019362,2]
[346380136,1734927040858,-500.0,0.00019362,2]
[346380137,1734927040867,-840.68,0.00019362,2]
[346380138,1734927040876,-500.0,0.00019362,2]
[346380139,1734927040885,-1244.48,0.00019362,2]
[346380140,1734927040894,-379.02250514,0.00019362,2]
[346380141,1734927040904,-784.23,0.00019362,2]
[346380142,1734927040912,-500.0,0.00019362,2]
[346380143,1734927040921,-509.89627698,0.00019362,2]
[346380144,1734927040930,-1747.74,0.00019362,2]
[346380145,1734927040940,-500.0,0.00019362,2]
[346380146,1734927040948,-500.0,0.00019362,2]
[346380147,1734927040958,-852.6,0.00019362,2]
[346380148,1734927040967,-794.68,0.00019362,2]
[346380149,1734927040976,-808.9,0.00019362,2]
[346380150,1734927040986,-500.0,0.00019362,2]
[346380151,1734927040995,-500.0,0.00019362,2]
[346380152,1734927041004,-500.0,0.00019362,2]
[346380153,1734927041013,-799.13,0.00019362,2]
[346380154,1734927041023,-500.0,0.00019362,2]
[346380155,1734927041032,-500.0,0.00019362,2]
[346380156,1734927041041,-500.0,0.00019362,2]
[346380157,1734927041051,-787.24,0.00019362,2]
[346380158,1734927041061,-500.0,0.00019362,2]
[346380159,1734927041070,-500.0,0.00019362,2]
[346380160,1734927041079,-1167.83,0.00019362,2]
[346380161,1734927041088,-1498.67,0.00019362,2]
[346380162,1734927041098,-611.16,0.00019362,2]
[346380163,1734927041107,-773.82,0.00019362,2]
[346380164,1734927041116,-1352.11,0.00019362,2]
[346380165,1734927041125,-500.0,0.00019362,2]
[346380166,1734927041135,-500.0,0.00019362,2]
[346380167,1734927041144,-1487.18,0.00019362,2]
[346380168,1734927041153,-1051.18,0.00019362,2]
[346380169,1734927041163,-2650.84,0.00019362,2]
[346380170,1734927041172,-1148.33,0.00019362,2]
[346380171,1734927041182,-500.0,0.00019362,2]
[346380172,1734927041191,-5391.95,0.00019362,2]
[346380173,1734927041201,-973.85,0.00019362,2]
[346380174,1734927041209,-500.0,0.00019362,2]
[346380175,1734927041219,-500.0,0.00019362,2]
[346380176,1734927041228,-1710.08,0.00019362,2]
[346380177,1734927041237,-6513.83,0.00019362,2]
[346380178,1734927041247,-1525.75,0.00019362,2]
[346380179,1734927041256,-500.0,0.00019362,2]
[346380180,1734927041266,-500.0,0.00019362,2]
[346380181,1734927041280,-500.0,0.00019362,2]
[346380182,1734927041290,-500.0,0.00019362,2]
[346380183,1734927041299,-1096.76,0.00019362,2]
[346380184,1734927041309,-770.71,0.00019362,2]
[346380185,1734927041319,-500.0,0.00019362,2]
[346380186,1734927041328,-500.0,0.00019362,2]
[346380187,1734927041337,-1291.42,0.00019362,2]
[346380188,1734927041347,-1397.92,0.00019362,2]
[346380189,1734927041357,-1207.22,0.00019362,2]
[346380190,1734927041366,-2065.34,0.00019362,2]
[346380191,1734927041375,-620.74,0.00019362,2]
[346380192,1734927041385,-1146.31,0.00019362,2]
[346380193,1734927041395,-1548.34,0.00019362,2]
[346380194,1734927041404,-614.26,0.00019362,2]
[346380195,1734927041413,-500.0,0.00019362,2]
[346380196,1734927041423,-1469.04,0.00019362,2]
[346380197,1734927041432,-2000.0,0.00019362,15]
[346380198,1734927041441,-1847.21,0.00019362,2]
[346380199,1734927041450,-1319.02,0.00019362,2]
[346380200,1734927041460,-500.0,0.00019362,2]
[346380201,1734927041469,-1678.47,0.00019362,2]
[346380202,1734927041478,-1647.45,0.00019362,2]
[346380203,1734927041488,-4395.09,0.00019362,2]
[346380204,1734927041497,-500.0,0.00019362,2]
[346380205,1734927041507,-2988.12,0.00019362,2]
[346380206,1734927041516,-1736.9,0.00019362,2]
[346380207,1734927041527,-500.0,0.00019362,2]
[346380208,1734927041536,-500.0,0.00019362,2]
[346380209,1734927041545,-500.0,0.00019362,2]
[346380210,1734927041554,-1275.08,0.00019362,2]
[346380211,1734927041563,-501.48,0.00019362,2]
[346380212,1734927041572,-3587.51,0.00019362,2]
[346380213,1734927041582,-1629.57,0.00019362,2]
[346380214,1734927041591,-500.0,0.00019362,2]
[346380215,1734927041600,-3470.81,0.00019362,2]
[346380216,1734927041609,-1707.09,0.00019362,2]
[346380217,1734927041618,-1094.41,0.00019362,2]
[346380218,1734927041627,-503.03599083,0.00019362,2]
[346380219,1734927041637,-500.0,0.00019362,2]
[346380220,1734927041646,-907.44,0.00019362,2]
[346380221,1734927041655,-1123.75,0.00019362,2]
[346380222,1734927041664,-1269.82,0.00019362,2]
[346380223,1734927041673,-2185.59,0.00019362,2]
[346380224,1734927041682,-500.0,0.00019362,2]
[346380225,1734927041691,-500.0,0.00019362,2]
[346380226,1734927041699,-500.0,0.00019362,2]
[346380227,1734927041707,-1973.84,0.00019362,2]
[346380228,1734927041715,-500.0,0.00019362,2]
[346380229,1734927041723,-500.0,0.00019362,2]
[346380230,1734927041732,-500.0,0.00019362,2]
[346380231,1734927041740,-1449.97,0.00019362,2]
[346380232,1734927041749,-4736.46,0.00019362,2]
[346380233,1734927041758,-3896.13,0.00019362,2]
[346380234,1734927041770,-192.84089159,0.00019362,2]
[346380235,1734927041779,-795.53,0.00019363,2]
[346380236,1734927041788,-799.81,0.00019363,2]
[346380237,1734927041797,-500.0,0.00019363,2]
[346380238,1734927041807,-500.0,0.00019363,2]
[346380239,1734927041815,-500.0,0.00019363,2]
[346380240,1734927041824,-777.11,0.00019363,2]
[346380241,1734927041833,-500.0,0.00019363,2]
[346380242,1734927041843,-500.0,0.00019363,2]
[346380243,1734927041852,-500.0,0.00019363,2]
[346380244,1734927041861,-500.0,0.00019363,2]
[346380245,1734927041870,-500.0,0.00019363,2]
[346380246,1734927041879,-500.0,0.00019363,2]
[346380247,1734927041889,-500.0,0.00019363,2]
[346380248,1734927041898,-500.0,0.00019363,2]
[346380249,1734927041907,-500.0,0.00019363,2]
[346380250,1734927041916,-634.24,0.00019363,2]
[346380251,1734927041925,-500.0,0.00019363,2]
[346380252,1734927041934,-500.0,0.00019363,2]
[346380253,1734927041944,-999.96,0.00019363,2]